{"text_format":"2","workbook":"xlsx","n_sheets":4,"sheets":["Guidance","ELL Data","Run Charts","Self-Reflection Questions"],"not_rendered":{"charts":7,"images":0,"macros":0,"external_links":0,"defined_names":1,"comments":0,"pivot_tables":0},"unopened":[],"bounds":{"document_bytes":16777216,"sheet_cells":100000,"run_cost":"one","rows_first":2000,"rows_last":500,"rows_between":2000,"halvings":0,"cell_chars":16384,"cell_head_chars":4096},"cells_cut":0,"cells_raw":0,"read":"whole","date_system":"1900"}

{"sheet":"Guidance","index":0,"n_rows":17,"n_cols":6,"rows_kept":17,"cut":false,"hidden":false,"merged":[[9,2,10,2],[5,0,6,0],[7,0,8,0],[5,3,6,3],[5,4,6,4],[5,2,6,2],[5,1,6,1],[7,2,8,2],[7,1,8,1],[16,0,24,3],[0,0,0,4],[14,0,15,0],[14,1,15,1],[14,2,15,2],[11,0,12,0],[11,1,12,1],[11,2,12,2],[3,1,4,1],[3,2,4,2],[3,0,4,0],[2,3,2,4],[1,0,1,5],[5,5,6,5],[9,0,10,0],[9,1,10,1]]}
["Early Language and Literacy Collaborative - Family of Measures Reporting Guidance",{"$nulls":4},"Site: [enter grantee team name]"]
["Your team is responsible for submitting this worksheet, updated and saved with the data outlined below, 10 business days prior to the monthly Action Period call for the Early Language and Literacy Collaborative (first Thursday of each month). Your monthly updates can be added to the worksheet on the second tab of this workbook. Please update per the directions below, including data collected between the first and last days of the prior month. For example, on the first Thursday of March, you will submit data for the month of February. Your team should note that the third tab has pre-programmed run charts to automatically display the data that you enter into the second tab. Please use these for your review and team planning. The fourth tab includes four self-reflection questions that ACF would like grantees to respond to each month. Your monthly updated worksheet should be sent via email to your TEI Liaison with a copy to your FPO. "]
["Measure","Associated Driver","Construct being measured","Operational Definition",null,"Guidance"]
[1,"SMART Aim","EL&L activities with child","Numerator","# of children (index child) enrolled in the home visiting program with a caregiver who, during the reporting month, reported that during a typical week the caregiver or a family member read, told stories, and/or sang songs with their child every day ","Report the number of index children with a caregiver who, during the reporting month, reported that during a typical week the caregiver or a family member read, told stories, and/or sang songs with their child every day. This is also Flex Measure 7 in your Performance Measurement Plan (if you chose to collect and report on Flex Measure 7). In order to be counted in the numerator, the caregiver would need to report at least once during the reporting month that, during a typical week, they or a family member read, told stories, and/or sang songs with their child every day."]
[null,null,null,"Denominator","# of children (index child) enrolled in the home visiting program during the reporting month","Report the number of index children enrolled in the HV program at any point during the reporting month that received at least one home visit during that month and were asked about EL&L activities with their child."]
[2,"PD1: Home visitors have knowledge and skills to support families to promote EL&L development with their children","Staff training","Count","# of trainings/communities of practice/peer sharing opportunities pertaining to EL&L/child development that home visitors attended during the last three months","This measure is a count. Report the total number of trainings/communities of practice/peer sharing opportunities pertaining to EL&L/child development your home visitors attended by the last day of the quarter for which you are reporting. For example, in March, please report trainings attended during December, January, and February."]
[]
[3,"PD2: Home visitors have the support and resources necessary to support families to promote EL&L development with their children","Supervision sessions where EL&L content was discussed","Numerator","# of individual and/or group supervision sessions where EL&L content was discussed during the reporting month","Report the number of individual and/or group supervision sessions where EL&L content was discussed that home visitors received by the last day of the month for which you are reporting. "]
[null,null,null,"Denominator","# of individual and/or group supervision sessions completed during the reporting month","Report the total number of individual and/or group supervision sessions home visitors received by the last day of the month for which you are reporting."]
[4,"PD3: Families have knowledge, skills, and resources to promote EL&L development with their children","Home visits where EL&L content was discussed","Numerator","# of home visits where EL&L content was discussed during the reporting month","Report the number of home visits where EL&L content was discussed by the last day of the month for which you are reporting. "]
[null,null,null,"Denominator","# of home visits delivered during the reporting month","Report the total number of home visits delivered by the last day of the month for which you are reporting. "]
[5,"PD3: Families have knowledge, skills, and resources to promote EL&L development with their children","Asking caregivers about EL&L activities with child","Numerator","# caregivers who were asked at home visits during the reporting month if, during a typical week, the caregiver or a family member read, told stories, and/or sang songs with their child every day","Report the number of caregivers who were asked during the month for which you are reporting if, during a typical week, they or a family member read, told stories, and/or sang songs with their child every day. In order to be counted in the numerator, the caregiver would need to be asked at least once during the reporting month."]
[null,null,null,"Denominator","# of caregivers enrolled in the home visiting program during the reporting month","Report the number of caregivers enrolled in the home visiting program at any point during the reporting month and received at least one home visit during the reporting month. "]
[6,"PD4. HV program/community has resources that support families to promote EL&L development with their children","Interactions with community partners specializing in EL&L","Count","# of interactions that the home visiting program has with community partners specializing in EL&L during the last three months","This measure is a count. Report the total number of interactions that your HV program had with community partners specializing in EL&L by the last day of the quarter for which you are reporting. "]
[7,"N/A (Balancing Measure)","HV dosage","Numerator","# of home visits received by families during the reporting month","Report the number of home visits received by families by the last day of the month for which you are reporting.  "]
[null,null,null,"Denominator","# of home visits families should receive according to model developer fidelity requirements during the reporting month","Report the number of home visits families should have received during the month for which you are reporting. Please use the definition \"Number of home visits families should receive\" in Core Measure 1 of your Performance Measurement Plan to determine how many home visits families should receive during a typical month. "]
["PAPERWORK REDUCTION ACT OF 1995 (Pub. L. 104-13): Through this information collection, ACF is gathering information to inform program support and technical assistance for grantees participating in the Tribal Continuous Quality Improvement Collaboratives. Public reporting burden for this collection of information is estimated to average 20 hours per grantee, including the time for reviewing instructions, gathering and maintaining the data needed, and reviewing the collection of information. This is a voluntary collection of information. An agency may not conduct or sponsor, and a person is not required to respond to, a collection of information subject to the requirements of the Paperwork Reduction Act of 1995, unless it displays a currently valid OMB control number. The OMB # is 0970-0531 and the expiration date is 7/31/2022. If you have any comments on this collection of information, please contact Julie Morales; morales@jbassoc.com"]

{"sheet":"ELL Data","index":1,"n_rows":21,"n_cols":18,"rows_kept":21,"cut":false,"hidden":false,"merged":[[0,0,0,17],[2,0,4,0],[7,0,9,0],[18,1,20,1],[2,1,4,1],[7,1,9,1],[13,1,15,1],[10,0,12,0],[10,1,12,1],[13,0,15,0],[18,0,20,0],[5,0,6,0],[5,1,6,1],[16,0,17,0],[16,1,17,1]]}
["Early Language and Literacy Collaborative - Family of Measures Data"]
["Measure","Construct Being Measured","Numerator/Denominator","2020-03-05","2020-04-02","2020-05-07","2020-06-04","2020-07-02","2020-08-06","2020-09-03","2020-10-01","2020-11-05","2020-12-03","2021-01-07","2021-02-04","2021-03-04","2021-04-01","2021-05-06"]
[1,"EL&L activities with child","# of index children with caregivers who report daily EL&L activity with their child during a typical week"]
[null,null,"# of children enrolled in the home visiting program"]
[null,null,"% Children Engaging in EL&L Activities with Caregiver or Family Member",{"$f":"D3/D4","v":{"$error":"#DIV/0!"}},{"$error":"#DIV/0!"},{"$error":"#DIV/0!"},{"$error":"#DIV/0!"},{"$error":"#DIV/0!"},{"$error":"#DIV/0!"},{"$error":"#DIV/0!"},{"$error":"#DIV/0!"},{"$error":"#DIV/0!"},{"$error":"#DIV/0!"},{"$error":"#DIV/0!"},{"$error":"#DIV/0!"},{"$error":"#DIV/0!"},{"$error":"#DIV/0!"},{"$error":"#DIV/0!"}]
[2,"Staff training","# of Trainings/Communities of Practice/Peer Sharing Opportunities Pertaining to EL&L/Child Development"]
[null,null,"# of Trainings/Communities of Practice/Peer Sharing Opportunities Pertaining to EL&L/Child Development",null,null,{"$f":"F6","v":0},null,null,{"$f":"I6","v":0},null,null,{"$f":"L6","v":0},null,null,{"$f":"O6","v":0},null,null,{"$f":"R6","v":0}]
[3,"Supervision sessions where EL&L content was discussed","# of individual and/or group supervision sessions where EL&L content was discussed"]
[null,null,"# of individual and/or group supervision sessions completed "]
[null,null,"% Supervisions Where EL&L Content was Discussed ",{"$f":"D8/D9","v":{"$error":"#DIV/0!"}},{"$error":"#DIV/0!"},{"$error":"#DIV/0!"},{"$error":"#DIV/0!"},{"$error":"#DIV/0!"},{"$error":"#DIV/0!"},{"$error":"#DIV/0!"},{"$error":"#DIV/0!"},{"$error":"#DIV/0!"},{"$error":"#DIV/0!"},{"$error":"#DIV/0!"},{"$error":"#DIV/0!"},{"$error":"#DIV/0!"},{"$error":"#DIV/0!"},{"$error":"#DIV/0!"}]
[4,"Home visits where EL&L content was discussed","# of home visits where EL&L content was discussed"]
[null,null,"# of home visits delivered"]
[null,null,"% Home Visits Where EL&L Content was Discussed",{"$f":"D11/D12","v":{"$error":"#DIV/0!"}},{"$f":"E11/E12","v":{"$error":"#DIV/0!"}},{"$f":"F11/F12","v":{"$error":"#DIV/0!"}},{"$f":"G11/G12","v":{"$error":"#DIV/0!"}},{"$f":"H11/H12","v":{"$error":"#DIV/0!"}},{"$f":"I11/I12","v":{"$error":"#DIV/0!"}},{"$f":"J11/J12","v":{"$error":"#DIV/0!"}},{"$f":"K11/K12","v":{"$error":"#DIV/0!"}},{"$f":"L11/L12","v":{"$error":"#DIV/0!"}},{"$f":"M11/M12","v":{"$error":"#DIV/0!"}},{"$f":"N11/N12","v":{"$error":"#DIV/0!"}},{"$f":"O11/O12","v":{"$error":"#DIV/0!"}},{"$f":"P11/P12","v":{"$error":"#DIV/0!"}},{"$f":"Q11/Q12","v":{"$error":"#DIV/0!"}},{"$f":"R11/R12","v":{"$error":"#DIV/0!"}}]
[5,"Asking caregivers about EL&L activities with child","# of caregivers who were asked about daily EL&L activity with their child during a typical week"]
[null,null,"# of caregivers enrolled in the home visiting program"]
[null,null,"% Caregivers Asked About EL&L Activities with Child",{"$f":"D14/D15","v":{"$error":"#DIV/0!"}},{"$error":"#DIV/0!"},{"$error":"#DIV/0!"},{"$error":"#DIV/0!"},{"$error":"#DIV/0!"},{"$error":"#DIV/0!"},{"$error":"#DIV/0!"},{"$error":"#DIV/0!"},{"$error":"#DIV/0!"},{"$error":"#DIV/0!"},{"$error":"#DIV/0!"},{"$error":"#DIV/0!"},{"$error":"#DIV/0!"},{"$error":"#DIV/0!"},{"$error":"#DIV/0!"}]
[6,"Interactions with community partners specializing in EL&L","# of interactions with community partners specializing in EL&L"]
[null,null,"# of Interactions with Community Partners Specializing in EL&L",null,null,{"$f":"F17","v":0},null,null,0,null,null,0,null,null,0,null,null,0]
[7,"HV dosage","# of families who received the recommended number of home visits "]
[null,null,"# of families enrolled in the home visiting program"]
[null,null,"% Families Receiving Recommended Home Visits",{"$f":"D19/D20","v":{"$error":"#DIV/0!"}},{"$error":"#DIV/0!"},{"$error":"#DIV/0!"},{"$error":"#DIV/0!"},{"$error":"#DIV/0!"},{"$error":"#DIV/0!"},{"$error":"#DIV/0!"},{"$error":"#DIV/0!"},{"$error":"#DIV/0!"},{"$error":"#DIV/0!"},{"$error":"#DIV/0!"},{"$error":"#DIV/0!"},{"$error":"#DIV/0!"},{"$error":"#DIV/0!"},{"$error":"#DIV/0!"}]

{"sheet":"Run Charts","index":2,"n_rows":2,"n_cols":1,"rows_kept":2,"cut":false,"hidden":false,"merged":[[1,0,3,16]]}
[]
["Instructions: The following data charts can be used by your team to share with staff, leadership, families, and other important stakeholders. Charts can be edited, copied, and pasted into other documents or presentations. Simply click on the chart, copy, and paste into your document or presentation. Edits can be made to the charts as needed by your team. The charts with data that are reported less frequently are located at the bottom. "]

{"sheet":"Self-Reflection Questions","index":3,"n_rows":13,"n_cols":1,"rows_kept":13,"cut":false,"hidden":false,"merged":[[10,0,10,16],[11,0,11,16],[12,0,12,16],[13,0,13,16],[1,0,3,16],[5,0,5,16],[6,0,6,16],[7,0,7,16],[8,0,8,16],[9,0,9,16]]}
[]
["Instructions: Please update your responses to the following questions every month based on your team's experience conducting continuous quality improvement through rapid-cycle PDSAs. This information will be used to help identify areas for targeted TA and potential content for future Action Period Calls. "]
[]
[]
[]
["Self-Reflection Questions"]
["1.      What successes emerged from your team’s Collaborative work this month?"]
[]
["2.      What challenge(s) emerged from your team’s Collaborative work this month?"]
[]
["3.      How did you address this/these challenge(s)?"]
[]
["4.      What TA supports would be helpful?"]